[Event "Early-Titled-Tuesday-Blitz-November-28-2023"]
[Site "Chess.com"]
[Date "2023.11.28"]
[Round "5"]
[White "Igor_Lysyj"]
[Black "GeorgiosSouleidis"]
[Result "1/2-1/2"]
[WhiteElo "2818"]
[BlackElo "2630"]
[TimeControl "180+1"]
[EndTime "8:57:54 PST"]
[Termination "Game drawn by repetition"]

1. d4 {[%clk 0:02:59.4]} 1... Nf6 {[%clk 0:03:00]} 2. c4 {[%clk 0:02:59]} 2...
g6 {[%clk 0:03:00.4]} 3. Nc3 {[%clk 0:02:58.3]} 3... Bg7 {[%clk 0:03:01.2]} 4.
e4 {[%clk 0:02:57.8]} 4... d6 {[%clk 0:03:01.8]} 5. Nf3 {[%clk 0:02:55.5]} 5...
O-O {[%clk 0:03:02.3]} 6. Be3 {[%clk 0:02:54.6]} 6... Ng4 {[%clk 0:02:41.3]} 7.
Bg5 {[%clk 0:02:54.1]} 7... h6 {[%clk 0:02:39.9]} 8. Bh4 {[%clk 0:02:54.2]} 8...
Nc6 {[%clk 0:01:43.6]} 9. d5 {[%clk 0:02:39.2]} 9... Nce5 {[%clk 0:01:38.8]} 10.
Nxe5 {[%clk 0:02:36.1]} 10... Nxe5 {[%clk 0:01:39.7]} 11. Be2 {[%clk 0:02:33.1]}
11... g5 {[%clk 0:01:33.3]} 12. Bg3 {[%clk 0:02:32.6]} 12... e6 {[%clk
0:01:33.1]} 13. O-O {[%clk 0:02:27.4]} 13... exd5 {[%clk 0:01:32.9]} 14. exd5
{[%clk 0:02:22.6]} 14... Ng6 {[%clk 0:01:26.8]} 15. Bh5 {[%clk 0:02:15.9]} 15...
Bd7 {[%clk 0:01:11.5]} 16. Re1 {[%clk 0:02:14.4]} 16... Qf6 {[%clk 0:01:09.5]}
17. Qb3 {[%clk 0:01:39.6]} 17... b6 {[%clk 0:01:09]} 18. Nb5 {[%clk 0:01:07]}
18... Bxb5 {[%clk 0:00:53]} 19. cxb5 {[%clk 0:01:04.7]} 19... Qxb2 {[%clk
0:00:45.1]} 20. Rac1 {[%clk 0:01:03.9]} 20... Qxb3 {[%clk 0:00:34.8]} 21. axb3
{[%clk 0:01:03.5]} 21... Rfe8 {[%clk 0:00:33]} 22. Rxe8+ {[%clk 0:01:01]} 22...
Rxe8 {[%clk 0:00:33.9]} 23. Kf1 {[%clk 0:01:01.4]} 23... Re7 {[%clk 0:00:25.8]}
24. Rc2 {[%clk 0:00:40.2]} 24... Kf8 {[%clk 0:00:19.4]} 25. Ra2 {[%clk 0:00:39]}
25... Bc3 {[%clk 0:00:19.4]} 26. Be2 {[%clk 0:00:36.6]} 26... Ba5 {[%clk
0:00:17.7]} 27. b4 {[%clk 0:00:34.4]} 27... Bxb4 {[%clk 0:00:17.9]} 28. Rxa7
{[%clk 0:00:34.1]} 28... Nf4 {[%clk 0:00:16.2]} 29. Bxf4 {[%clk 0:00:30.3]}
29... gxf4 {[%clk 0:00:17.1]} 30. g3 {[%clk 0:00:30.5]} 30... fxg3 {[%clk
0:00:17]} 31. hxg3 {[%clk 0:00:30.6]} 31... Kg7 {[%clk 0:00:15.9]} 32. Ra4
{[%clk 0:00:28.1]} 32... Bc3 {[%clk 0:00:12.6]} 33. Rc4 {[%clk 0:00:27.5]} 33...
Bb2 {[%clk 0:00:11.2]} 34. Bd3 {[%clk 0:00:26]} 34... Ba3 {[%clk 0:00:11]} 35.
Re4 {[%clk 0:00:22.6]} 35... Rxe4 {[%clk 0:00:10.9]} 36. Bxe4 {[%clk 0:00:22.7]}
36... Kf6 {[%clk 0:00:11.1]} 37. f4 {[%clk 0:00:22.9]} 37... Bb4 {[%clk
0:00:10.4]} 38. Kg2 {[%clk 0:00:23.2]} 38... Be1 {[%clk 0:00:10.5]} 39. Kf3
{[%clk 0:00:23.4]} 39... Kg7 {[%clk 0:00:09.5]} 40. Bf5 {[%clk 0:00:23.4]} 40...
Kf6 {[%clk 0:00:09.7]} 41. Be4 {[%clk 0:00:23.4]} 41... Kg7 {[%clk 0:00:10.1]}
42. Bf5 {[%clk 0:00:23.5]} 42... Kf6 {[%clk 0:00:10]} 43. Be4 {[%clk 0:00:23.9]}
1/2-1/2

[Event "Early-Titled-Tuesday-Blitz-November-28-2023"]
[Site "Chess.com"]
[Date "2023.11.28"]
[Round "5"]
[White "Zavgorodniy_Sergiy"]
[Black "TigrVShlyape"]
[Result "1/2-1/2"]
[WhiteElo "2699"]
[BlackElo "2968"]
[TimeControl "180+1"]
[EndTime "8:57:55 PST"]
[Termination "Game drawn by repetition"]

1. e4 {[%clk 0:03:00.9]} 1... c5 {[%clk 0:02:57.3]} 2. Nf3 {[%clk 0:03:00.2]}
2... e6 {[%clk 0:02:57.2]} 3. d3 {[%clk 0:02:57.5]} 3... b6 {[%clk 0:02:51.6]}
4. g3 {[%clk 0:02:57]} 4... Bb7 {[%clk 0:02:52]} 5. Bg2 {[%clk 0:02:57.2]} 5...
d6 {[%clk 0:02:39.3]} 6. O-O {[%clk 0:02:56.7]} 6... Be7 {[%clk 0:02:38.8]} 7.
c3 {[%clk 0:02:54]} 7... Nd7 {[%clk 0:02:35.2]} 8. Re1 {[%clk 0:02:52.4]} 8...
Ngf6 {[%clk 0:02:34.6]} 9. Bg5 {[%clk 0:02:48]} 9... O-O {[%clk 0:02:32.8]} 10.
Nbd2 {[%clk 0:02:47.7]} 10... h6 {[%clk 0:02:32]} 11. Bxf6 {[%clk 0:02:47.5]}
11... Nxf6 {[%clk 0:02:29.4]} 12. d4 {[%clk 0:02:40.1]} 12... cxd4 {[%clk
0:02:27.7]} 13. cxd4 {[%clk 0:02:35.5]} 13... Rc8 {[%clk 0:02:26.1]} 14. d5
{[%clk 0:01:36.7]} 14... exd5 {[%clk 0:02:19.4]} 15. Nd4 {[%clk 0:01:33.7]}
15... dxe4 {[%clk 0:02:17.6]} 16. Nxe4 {[%clk 0:01:33.8]} 16... Nxe4 {[%clk
0:02:15.3]} 17. Bxe4 {[%clk 0:01:33.9]} 17... Bxe4 {[%clk 0:02:12.8]} 18. Rxe4
{[%clk 0:01:34]} 18... d5 {[%clk 0:02:08]} 19. Re3 {[%clk 0:01:28.1]} 19... Bf6
{[%clk 0:02:02.4]} 20. Rd3 {[%clk 0:01:27.5]} 20... Re8 {[%clk 0:01:52.7]} 21.
Qf3 {[%clk 0:01:19.6]} 21... Rc5 {[%clk 0:01:02.6]} 22. Rad1 {[%clk 0:01:18.2]}
22... Qc8 {[%clk 0:00:28.8]} 23. Kg2 {[%clk 0:01:14.5]} 23... Re5 {[%clk
0:00:22.5]} 24. b3 {[%clk 0:01:13]} 24... a5 {[%clk 0:00:21.5]} 25. a4 {[%clk
0:01:09.2]} 25... h5 {[%clk 0:00:20.7]} 26. h4 {[%clk 0:01:07.9]} 26... Qg4
{[%clk 0:00:19.5]} 27. Nb5 {[%clk 0:00:49]} 27... Qxf3+ {[%clk 0:00:18.9]} 28.
Kxf3 {[%clk 0:00:47.9]} 28... g6 {[%clk 0:00:18.9]} 29. Kg2 {[%clk 0:00:33.6]}
29... Kg7 {[%clk 0:00:17.6]} 30. Nc3 {[%clk 0:00:27.2]} 30... d4 {[%clk
0:00:14.8]} 31. Nb5 {[%clk 0:00:26.9]} 31... Rf5 {[%clk 0:00:12]} 32. Nxd4
{[%clk 0:00:25]} 32... Bxd4 {[%clk 0:00:11.6]} 33. Rxd4 {[%clk 0:00:24.9]} 33...
Rc2 {[%clk 0:00:10.7]} 34. R1d2 {[%clk 0:00:24.4]} 34... Rxd2 {[%clk 0:00:08.9]}
35. Rxd2 {[%clk 0:00:24.4]} 35... b5 {[%clk 0:00:08.7]} 36. Rd6 {[%clk
0:00:17.3]} 36... bxa4 {[%clk 0:00:07]} 37. bxa4 {[%clk 0:00:17.1]} 37... Rc5
{[%clk 0:00:07.6]} 38. Ra6 {[%clk 0:00:16.5]} 38... Rf5 {[%clk 0:00:07.6]} 39.
Ra7 {[%clk 0:00:16.6]} 39... Rc5 {[%clk 0:00:07.2]} 40. Ra6 {[%clk 0:00:16.7]}
40... Rf5 {[%clk 0:00:07.1]} 41. Ra7 {[%clk 0:00:17]} 41... Rc5 {[%clk
0:00:07.2]} 42. Ra6 {[%clk 0:00:17.3]} 1/2-1/2

[Event "Early-Titled-Tuesday-Blitz-November-28-2023"]
[Site "Chess.com"]
[Date "2023.11.28"]
[Round "5"]
[White "wonderfultime"]
[Black "Krakozia"]
[Result "1-0"]
[WhiteElo "3081"]
[BlackElo "2954"]
[TimeControl "180+1"]
[EndTime "8:57:58 PST"]
[Termination "wonderfultime won on time"]

1. d4 {[%clk 0:02:55.4]} 1... d5 {[%clk 0:02:58.4]} 2. Nf3 {[%clk 0:02:53.2]}
2... Nf6 {[%clk 0:02:57.9]} 3. Bf4 {[%clk 0:02:54]} 3... c5 {[%clk 0:02:57.2]}
4. c3 {[%clk 0:02:54.2]} 4... cxd4 {[%clk 0:02:55.8]} 5. cxd4 {[%clk 0:02:54.5]}
5... Nc6 {[%clk 0:02:56.4]} 6. Nc3 {[%clk 0:02:53.7]} 6... Nh5 {[%clk
0:02:56.2]} 7. Be5 {[%clk 0:02:53.5]} 7... f6 {[%clk 0:02:53.7]} 8. Bg3 {[%clk
0:02:53.6]} 8... e6 {[%clk 0:02:48.1]} 9. e3 {[%clk 0:02:52.9]} 9... g6 {[%clk
0:02:46.9]} 10. Rc1 {[%clk 0:02:49.2]} 10... Nxg3 {[%clk 0:02:43.6]} 11. hxg3
{[%clk 0:02:49.1]} 11... Bg7 {[%clk 0:02:39.9]} 12. Bd3 {[%clk 0:02:48.7]} 12...
Ke7 {[%clk 0:02:26.8]} 13. O-O {[%clk 0:02:34.4]} 13... Bd7 {[%clk 0:02:23.9]}
14. e4 {[%clk 0:02:34.5]} 14... Re8 {[%clk 0:02:17.1]} 15. exd5 {[%clk
0:02:32.5]} 15... exd5 {[%clk 0:02:18]} 16. Nxd5+ {[%clk 0:02:32.8]} 16... Kf8
{[%clk 0:02:18]} 17. Qb3 {[%clk 0:01:48.5]} 17... Be6 {[%clk 0:02:06.5]} 18.
Qa3+ {[%clk 0:01:48.9]} 18... Kg8 {[%clk 0:02:03.2]} 19. Nf4 {[%clk 0:01:49.6]}
19... Bf7 {[%clk 0:02:02.2]} 20. d5 {[%clk 0:01:50]} 20... Bf8 {[%clk 0:01:38]}
21. Qb3 {[%clk 0:01:35.5]} 21... Ne5 {[%clk 0:01:30.5]} 22. Nxe5 {[%clk
0:01:33.7]} 22... Rxe5 {[%clk 0:01:30.1]} 23. Bc4 {[%clk 0:01:23.8]} 23... Qb6
{[%clk 0:01:28.3]} 24. Qf3 {[%clk 0:01:09.7]} 24... Bd6 {[%clk 0:01:10.6]} 25.
Ne6 {[%clk 0:01:08.7]} 25... Rf5 {[%clk 0:01:06.3]} 26. Qd3 {[%clk 0:00:56.2]}
26... Qxb2 {[%clk 0:01:00.3]} 27. Bb3 {[%clk 0:00:54.4]} 27... Qa3 {[%clk
0:00:49.8]} 28. g4 {[%clk 0:00:50.8]} 28... Bxe6 {[%clk 0:00:24.9]} 29. dxe6
{[%clk 0:00:48.6]} 29... Re5 {[%clk 0:00:25.6]} 30. f4 {[%clk 0:00:33.6]} 30...
Ra5 {[%clk 0:00:24.5]} 31. Kh1 {[%clk 0:00:29.5]} 31... Be7 {[%clk 0:00:23.8]}
32. Rc7 {[%clk 0:00:27.8]} 32... Kf8 {[%clk 0:00:19.7]} 33. Qh3 {[%clk
0:00:25.8]} 33... Kg7 {[%clk 0:00:14.8]} 34. g5 {[%clk 0:00:22.4]} 34... f5
{[%clk 0:00:10.7]} 35. Qc3+ {[%clk 0:00:19.7]} 35... Kg8 {[%clk 0:00:10.3]} 36.
Rxe7 {[%clk 0:00:19.7]} 36... Qxe7 {[%clk 0:00:06.2]} 37. Qxa5 {[%clk
0:00:19.9]} 37... Rc8 {[%clk 0:00:05.9]} 38. Qe5 {[%clk 0:00:19.9]} 1-0

[Event "Early-Titled-Tuesday-Blitz-November-28-2023"]
[Site "Chess.com"]
[Date "2023.11.28"]
[Round "5"]
[White "guillembaches"]
[Black "AlexTruskavetsky"]
[Result "0-1"]
[WhiteElo "2522"]
[BlackElo "2480"]
[TimeControl "180+1"]
[EndTime "8:57:59 PST"]
[Termination "AlexTruskavetsky won on time"]

1. d4 {[%clk 0:03:00.9]} 1... Nf6 {[%clk 0:02:56.2]} 2. Nf3 {[%clk 0:03:01.5]}
2... e6 {[%clk 0:02:55.6]} 3. Bg5 {[%clk 0:03:02.1]} 3... d5 {[%clk 0:02:54.9]}
4. Nbd2 {[%clk 0:03:01.6]} 4... Be7 {[%clk 0:02:54.5]} 5. e3 {[%clk 0:03:02]}
5... Ne4 {[%clk 0:02:54.8]} 6. Bxe7 {[%clk 0:02:52.4]} 6... Qxe7 {[%clk
0:02:55]} 7. Bd3 {[%clk 0:02:49.4]} 7... f5 {[%clk 0:02:54.7]} 8. O-O {[%clk
0:02:48]} 8... Nd7 {[%clk 0:02:54.9]} 9. c4 {[%clk 0:02:47]} 9... c6 {[%clk
0:02:55]} 10. Rb1 {[%clk 0:02:39.5]} 10... O-O {[%clk 0:02:54.8]} 11. b4 {[%clk
0:02:38.8]} 11... Nc3 {[%clk 0:02:55]} 12. Qb3 {[%clk 0:02:38.8]} 12... Nxb1
{[%clk 0:02:55.2]} 13. Rxb1 {[%clk 0:02:39.2]} 13... a5 {[%clk 0:02:54.6]} 14.
b5 {[%clk 0:02:39]} 14... a4 {[%clk 0:02:54.1]} 15. Qc3 {[%clk 0:02:38.4]} 15...
g5 {[%clk 0:02:39.6]} 16. c5 {[%clk 0:02:28.5]} 16... g4 {[%clk 0:02:38.8]} 17.
Ne5 {[%clk 0:02:23.6]} 17... Nxe5 {[%clk 0:02:38.9]} 18. dxe5 {[%clk 0:02:24.5]}
18... Bd7 {[%clk 0:02:38.8]} 19. b6 {[%clk 0:02:17.8]} 19... h5 {[%clk
0:02:36.8]} 20. g3 {[%clk 0:02:17]} 20... h4 {[%clk 0:02:36.2]} 21. Qd4 {[%clk
0:02:16.6]} 21... hxg3 {[%clk 0:02:35.9]} 22. hxg3 {[%clk 0:02:15.2]} 22... Kg7
{[%clk 0:02:36]} 23. Kf1 {[%clk 0:02:15]} 23... Rh8 {[%clk 0:02:35.8]} 24. Ke2
{[%clk 0:02:15.1]} 24... Ra5 {[%clk 0:02:27.2]} 25. Rc1 {[%clk 0:02:04.4]} 25...
Raa8 {[%clk 0:02:16.2]} 26. a3 {[%clk 0:01:58.8]} 26... Rh2 {[%clk 0:02:12.9]}
27. Nf1 {[%clk 0:01:49.5]} 27... Rh1 {[%clk 0:02:12.7]} 28. Rb1 {[%clk
0:01:44.2]} 28... Ra5 {[%clk 0:02:11.7]} 29. Rc1 {[%clk 0:01:43.2]} 29... Qg5
{[%clk 0:01:44.2]} 30. Rb1 {[%clk 0:01:29.8]} 30... Qh6 {[%clk 0:01:30.7]} 31.
Ke1 {[%clk 0:01:27.7]} 31... Rg1 {[%clk 0:01:23.8]} 32. Rb4 {[%clk 0:01:23.2]}
32... Qg5 {[%clk 0:01:07.6]} 33. Rxa4 {[%clk 0:01:18.3]} 33... Rxa4 {[%clk
0:01:06.7]} 34. Qxa4 {[%clk 0:01:18.9]} 34... Qe7 {[%clk 0:01:05.8]} 35. Qd4
{[%clk 0:01:15.9]} 35... Rh1 {[%clk 0:01:03.2]} 36. a4 {[%clk 0:01:11.7]} 36...
Rh8 {[%clk 0:01:03.1]} 37. a5 {[%clk 0:01:09.5]} 37... Ra8 {[%clk 0:01:01.3]}
38. Qc3 {[%clk 0:01:06.3]} 38... Bc8 {[%clk 0:01:01.3]} 39. Qb4 {[%clk
0:00:57.9]} 39... Kf8 {[%clk 0:00:56.4]} 40. Nd2 {[%clk 0:00:54.2]} 40... Qg7
{[%clk 0:00:55.8]} 41. Qc3 {[%clk 0:00:49.8]} 41... Qh7 {[%clk 0:00:53.7]} 42.
Nb3 {[%clk 0:00:46.2]} 42... Qh1+ {[%clk 0:00:52.7]} 43. Bf1 {[%clk 0:00:38.1]}
43... Qe4 {[%clk 0:00:51.7]} 44. a6 {[%clk 0:00:26.8]} 44... bxa6 {[%clk
0:00:46.6]} 45. Na5 {[%clk 0:00:26.9]} 45... Qb1+ {[%clk 0:00:45.4]} 46. Kd2
{[%clk 0:00:26.2]} 46... Qxf1 {[%clk 0:00:43.2]} 47. b7 {[%clk 0:00:26]} 47...
Bxb7 {[%clk 0:00:42.3]} 48. Nxb7 {[%clk 0:00:26.5]} 48... Qxf2+ {[%clk
0:00:39.1]} 0-1

[Event "Early-Titled-Tuesday-Blitz-November-28-2023"]
[Site "Chess.com"]
[Date "2023.11.28"]
[Round "5"]
[White "deepfear"]
[Black "Laico"]
[Result "0-1"]
[WhiteElo "1919"]
[BlackElo "2334"]
[TimeControl "180+1"]
[EndTime "8:58:00 PST"]
[Termination "Laico won on time"]

1. e4 {[%clk 0:02:59.9]} 1... e6 {[%clk 0:02:56.6]} 2. Nf3 {[%clk 0:02:57.5]}
2... d5 {[%clk 0:02:57.3]} 3. e5 {[%clk 0:02:57.5]} 3... c5 {[%clk 0:02:57.5]}
4. b4 {[%clk 0:02:56.5]} 4... Nc6 {[%clk 0:02:58.1]} 5. bxc5 {[%clk 0:02:56.4]}
5... d4 {[%clk 0:02:58.6]} 6. Bb5 {[%clk 0:01:55]} 6... Bxc5 {[%clk 0:02:57.2]}
7. O-O {[%clk 0:01:53]} 7... Ne7 {[%clk 0:02:51.2]} 8. c3 {[%clk 0:01:45.8]}
8... O-O {[%clk 0:02:47.5]} 9. Bb2 {[%clk 0:01:37.2]} 9... d3 {[%clk 0:02:34.7]}
10. Na3 {[%clk 0:01:21.7]} 10... Qa5 {[%clk 0:02:17.2]} 11. Qb3 {[%clk
0:01:12.7]} 11... Rd8 {[%clk 0:02:03.3]} 12. Nc4 {[%clk 0:01:09.2]} 12... Qc7
{[%clk 0:02:03.3]} 13. a4 {[%clk 0:00:35.4]} 13... Nf5 {[%clk 0:01:16.3]} 14.
Bxc6 {[%clk 0:00:31.5]} 14... Qxc6 {[%clk 0:01:15.7]} 15. Ba3 {[%clk 0:00:31.2]}
15... h5 {[%clk 0:01:04.3]} 16. Bxc5 {[%clk 0:00:30.7]} 16... Qxc5 {[%clk
0:01:05.2]} 17. Ne3 {[%clk 0:00:19.7]} 17... Ne7 {[%clk 0:00:56.8]} 18. Nd4
{[%clk 0:00:18.5]} 18... b6 {[%clk 0:00:52.9]} 19. Qb1 {[%clk 0:00:17.7]} 19...
Bb7 {[%clk 0:00:44.4]} 20. Qxd3 {[%clk 0:00:17]} 20... Qxe5 {[%clk 0:00:43.8]}
21. Qb5 {[%clk 0:00:13.5]} 21... Qf4 {[%clk 0:00:34.9]} 22. Qe2 {[%clk
0:00:11.5]} 22... h4 {[%clk 0:00:32.8]} 23. g3 {[%clk 0:00:08.9]} 23... Qh6
{[%clk 0:00:28.9]} 24. f3 {[%clk 0:00:07.9]} 24... hxg3 {[%clk 0:00:24.3]} 25.
hxg3 {[%clk 0:00:08.2]} 25... e5 {[%clk 0:00:22.2]} 26. Ndf5 {[%clk 0:00:07.4]}
26... Nxf5 {[%clk 0:00:22.5]} 27. Nxf5 {[%clk 0:00:08.3]} 27... Qf6 {[%clk
0:00:22.9]} 28. Ne3 {[%clk 0:00:03.3]} 28... Rd7 {[%clk 0:00:17.4]} 29. Ng4
{[%clk 0:00:03.3]} 29... Qg5 {[%clk 0:00:16.6]} 30. Qxe5 {[%clk 0:00:02.1]}
30... Qxd2 {[%clk 0:00:11.6]} 31. Rad1 {[%clk 0:00:01.4]} 31... Qxd1 {[%clk
0:00:12.3]} 32. Rxd1 {[%clk 0:00:01.5]} 32... Rxd1+ {[%clk 0:00:13.2]} 33. Kf2
{[%clk 0:00:01.9]} 33... Rad8 {[%clk 0:00:13.9]} 34. Ke3 {[%clk 0:00:01.9]}
34... R1d3+ {[%clk 0:00:12.1]} 35. Kf4 {[%clk 0:00:02.4]} 35... Rxf3+ {[%clk
0:00:12.4]} 36. Kg5 {[%clk 0:00:02.4]} 36... f6+ {[%clk 0:00:12.7]} 37. Nxf6+
{[%clk 0:00:02.5]} 37... gxf6+ {[%clk 0:00:13.6]} 38. Qxf6 {[%clk 0:00:03.1]}
38... Rxf6 {[%clk 0:00:14]} 39. Kxf6 {[%clk 0:00:04]} 39... Rd3 {[%clk
0:00:14.2]} 0-1

[Event "Early-Titled-Tuesday-Blitz-November-28-2023"]
[Site "Chess.com"]
[Date "2023.11.28"]
[Round "5"]
[White "NowInChess"]
[Black "emeli_chess"]
[Result "0-1"]
[WhiteElo "2169"]
[BlackElo "2379"]
[TimeControl "180+1"]
[EndTime "8:58:02 PST"]
[Termination "emeli_chess won on time"]

1. e4 {[%clk 0:03:00.9]} 1... c5 {[%clk 0:02:59.4]} 2. d3 {[%clk 0:03:01]} 2...
d5 {[%clk 0:02:57.7]} 3. Nd2 {[%clk 0:03:00]} 3... Nc6 {[%clk 0:02:53.1]} 4.
Ngf3 {[%clk 0:02:59.7]} 4... e5 {[%clk 0:02:48.3]} 5. g3 {[%clk 0:02:58.3]} 5...
d4 {[%clk 0:02:43.1]} 6. Nc4 {[%clk 0:02:56.1]} 6... Bd6 {[%clk 0:02:35.7]} 7.
Bg2 {[%clk 0:02:49.4]} 7... Bc7 {[%clk 0:02:33.2]} 8. a4 {[%clk 0:02:48.4]} 8...
h6 {[%clk 0:02:30.2]} 9. h4 {[%clk 0:02:38.4]} 9... Nf6 {[%clk 0:02:28.6]} 10.
Bd2 {[%clk 0:02:22.7]} 10... Be6 {[%clk 0:02:27.2]} 11. b3 {[%clk 0:02:18.6]}
11... O-O {[%clk 0:02:22.5]} 12. O-O {[%clk 0:02:15.6]} 12... b6 {[%clk
0:02:16.2]} 13. Qe2 {[%clk 0:02:04.3]} 13... a6 {[%clk 0:02:15.3]} 14. Nh2
{[%clk 0:01:49.8]} 14... b5 {[%clk 0:02:13.8]} 15. axb5 {[%clk 0:01:48.9]} 15...
axb5 {[%clk 0:02:13.1]} 16. Na3 {[%clk 0:01:49.4]} 16... Rb8 {[%clk 0:02:11.8]}
17. f4 {[%clk 0:01:38.6]} 17... exf4 {[%clk 0:02:02.3]} 18. gxf4 {[%clk
0:01:32.8]} 18... Re8 {[%clk 0:01:37.3]} 19. Qf2 {[%clk 0:01:13.6]} 19... Ng4
{[%clk 0:01:33.2]} 20. Nxg4 {[%clk 0:01:12.3]} 20... Bxg4 {[%clk 0:01:33.3]} 21.
Rae1 {[%clk 0:00:53.8]} 21... f5 {[%clk 0:01:28.3]} 22. exf5 {[%clk 0:00:49.4]}
22... Ne7 {[%clk 0:01:21.5]} 23. Qg3 {[%clk 0:00:38.6]} 23... h5 {[%clk
0:01:20.6]} 24. f6 {[%clk 0:00:37.3]} 24... Nf5 {[%clk 0:01:15.5]} 25. Rxe8+
{[%clk 0:00:22.3]} 25... Qxe8 {[%clk 0:01:10.3]} 26. Bd5+ {[%clk 0:00:22.6]}
26... Kh7 {[%clk 0:00:49.4]} 27. Qf2 {[%clk 0:00:17.9]} 27... gxf6 {[%clk
0:00:46.5]} 28. Be4 {[%clk 0:00:12]} 28... Kh8 {[%clk 0:00:42]} 29. Re1 {[%clk
0:00:10.1]} 29... Qd7 {[%clk 0:00:40.9]} 30. Qh2 {[%clk 0:00:03.6]} 30... Rg8
{[%clk 0:00:39.1]} 31. Kh1 {[%clk 0:00:03]} 31... Nd6 {[%clk 0:00:19.6]} 32. Qf2
{[%clk 0:00:02.9]} 32... Nxe4 {[%clk 0:00:17.3]} 33. Rxe4 {[%clk 0:00:03.1]}
33... Qc6 {[%clk 0:00:07.5]} 34. Kh2 {[%clk 0:00:02.6]} 34... Bf5 {[%clk
0:00:06.1]} 35. Re7 {[%clk 0:00:01.6]} 35... Bd6 {[%clk 0:00:04.9]} 0-1

[Event "Early-Titled-Tuesday-Blitz-November-28-2023"]
[Site "Chess.com"]
[Date "2023.11.28"]
[Round "5"]
[White "Oleksandr_Bortnyk"]
[Black "Kirill_Klukin"]
[Result "1-0"]
[WhiteElo "3064"]
[BlackElo "2853"]
[TimeControl "180+1"]
[EndTime "8:58:05 PST"]
[Termination "Oleksandr_Bortnyk won by resignation"]

1. e4 {[%clk 0:03:00.9]} 1... c5 {[%clk 0:02:59.1]} 2. c3 {[%clk 0:02:55.3]}
2... g6 {[%clk 0:02:53.1]} 3. d4 {[%clk 0:02:43.8]} 3... cxd4 {[%clk 0:02:54]}
4. cxd4 {[%clk 0:02:43.9]} 4... d5 {[%clk 0:02:53.9]} 5. exd5 {[%clk 0:02:43.7]}
5... Bg7 {[%clk 0:02:54.1]} 6. Nc3 {[%clk 0:02:43.8]} 6... Nf6 {[%clk
0:02:54.7]} 7. Bc4 {[%clk 0:02:43.9]} 7... O-O {[%clk 0:02:55.4]} 8. Nge2 {[%clk
0:02:42.3]} 8... Nbd7 {[%clk 0:02:55.8]} 9. Nf4 {[%clk 0:02:40.1]} 9... Nb6
{[%clk 0:02:51.1]} 10. Bb3 {[%clk 0:02:40.1]} 10... Bf5 {[%clk 0:02:39.6]} 11.
O-O {[%clk 0:02:38.4]} 11... Rc8 {[%clk 0:02:16.6]} 12. Re1 {[%clk 0:02:33.4]}
12... Qd7 {[%clk 0:02:01.2]} 13. h3 {[%clk 0:02:32.3]} 13... g5 {[%clk
0:01:50.3]} 14. Nd3 {[%clk 0:02:21.1]} 14... h6 {[%clk 0:01:42.6]} 15. Nc5
{[%clk 0:02:14.7]} 15... Qc7 {[%clk 0:01:35]} 16. Qf3 {[%clk 0:02:14.6]} 16...
Bg6 {[%clk 0:01:31.1]} 17. Nb5 {[%clk 0:02:14.3]} 17... Qd8 {[%clk 0:01:08]} 18.
d6 {[%clk 0:02:10.3]} 18... exd6 {[%clk 0:01:04.8]} 19. Nxb7 {[%clk 0:02:10.9]}
19... Qd7 {[%clk 0:01:00.1]} 20. N5xd6 {[%clk 0:02:06]} 20... Rc6 {[%clk
0:00:47.1]} 21. Qg3 {[%clk 0:01:30.4]} 21... Nh5 {[%clk 0:00:41.4]} 22. Qg4
{[%clk 0:01:30.1]} 22... Rxd6 {[%clk 0:00:41.7]} 23. Nxd6 {[%clk 0:01:21.9]}
23... Qxd6 {[%clk 0:00:42.6]} 24. Be3 {[%clk 0:00:56.7]} 24... Nf6 {[%clk
0:00:42.9]} 25. Qe2 {[%clk 0:00:53.3]} 25... Nfd5 {[%clk 0:00:43.2]} 26. Rac1
{[%clk 0:00:51.1]} 26... Nf4 {[%clk 0:00:43.5]} 27. Qb5 {[%clk 0:00:43.7]} 27...
Nd3 {[%clk 0:00:39.1]} 28. Rc6 {[%clk 0:00:42.9]} 28... Qd7 {[%clk 0:00:27.6]}
29. Rd1 {[%clk 0:00:38.6]} 29... Rd8 {[%clk 0:00:18.8]} 30. a4 {[%clk
0:00:33.5]} 30... Be4 {[%clk 0:00:17.5]} 31. d5 {[%clk 0:00:28.8]} 31... Nxb2
{[%clk 0:00:12.9]} 32. Bxb6 {[%clk 0:00:27.1]} 32... axb6 {[%clk 0:00:11.1]} 33.
Rd2 {[%clk 0:00:25.5]} 33... Be5 {[%clk 0:00:05]} 34. Rxb6 {[%clk 0:00:18]}
34... Qxb5 {[%clk 0:00:05]} 35. Rxb5 {[%clk 0:00:17.9]} 35... Nd3 {[%clk
0:00:05.2]} 36. a5 {[%clk 0:00:14.8]} 36... Bc3 {[%clk 0:00:03.4]} 37. Re2
{[%clk 0:00:14.2]} 37... Bf5 {[%clk 0:00:02.3]} 38. a6 {[%clk 0:00:13.5]} 38...
Bd4 {[%clk 0:00:02.9]} 39. d6 {[%clk 0:00:11.7]} 39... Nf4 {[%clk 0:00:02.9]}
40. Rd2 {[%clk 0:00:11.1]} 40... Ba7 {[%clk 0:00:03.6]} 41. Rxf5 {[%clk
0:00:11.2]} 41... Ng6 {[%clk 0:00:01.7]} 42. Rxf7 {[%clk 0:00:10.9]} 1-0